bitfinex-derivatives/quotes_BTCF0:USTF0_20251110
["timestamp","ask_amount","ask_price","bid_price","bid_amount"]
[1762807058820,0.23712044,106300.0,106290.0,0.150375]
[1762807059407,0.1441127,106300.0,106290.0,0.150375]
[1762807059607,0.23712044,106300.0,106290.0,0.24338274]
[1762807060320,0.23712044,106300.0,106290.0,0.150375]
[1762807062422,0.1441127,106300.0,106290.0,0.24338274]
[1762807062621,0.14301094,106300.0,106290.0,0.24338274]
[1762807063123,0.23711714,106300.0,106290.0,0.150375]
[1762807065226,0.0500032,106300.0,106290.0,0.24338274]
[1762807065526,0.23711714,106300.0,106290.0,0.31074829]
[1762807067311,0.23611714,106300.0,106290.0,0.31174829]
[1762807068225,0.0940885,106320.0,106310.0,0.05626]
[1762807068522,0.28076997,106320.0,106310.0,0.05845803]
[1762807068718,0.37377771,106320.0,106310.0,0.00219803]
[1762807068920,0.0940973,106310.0,106300.0,0.0001411]
[1762807069115,0.28077877,106310.0,106300.0,0.00233913]
[1762807069425,0.28077877,106310.0,106300.0,0.09148737]
[1762807069811,0.28077877,106310.0,106300.0,0.11260737]
[1762807070123,0.28077877,106310.0,106300.0,0.09148737]
[1762807070425,0.28077877,106310.0,106300.0,0.11260737]
[1762807073727,0.28077877,106310.0,106300.0,0.13495737]
[1762807075418,0.37378651,106310.0,106300.0,0.00233913]
[1762807075628,0.37378651,106310.0,106300.0,0.0001411]
[1762807076029,0.28077877,106310.0,106300.0,0.0001411]
[1762807076629,0.30349119,106310.0,106300.0,0.0001411]
[1762807077722,0.39649893,106310.0,106300.0,0.0001411]
[1762807078426,0.0941062,106300.0,106290.0,0.01397]
[1762807078728,0.37379541,106300.0,106290.0,0.01616803]
[1762807078928,0.37379541,106300.0,106290.0,0.03792803]
[1762807080531,0.37379541,106300.0,106290.0,0.03892803]
[1762807081630,0.37379541,106300.0,106290.0,0.06030803]
[1762807084235,0.28078767,106300.0,106290.0,0.06030803]
[1762807084937,0.37379541,106300.0,106290.0,0.06030803]
[1762807090033,0.28078767,106300.0,106290.0,0.06030803]
[1762807090535,0.37379541,106300.0,106290.0,0.06030803]
[1762807090735,0.28078767,106300.0,106290.0,0.06030803]
[1762807092445,0.28078767,106300.0,106290.0,0.15442303]
[1762807093150,0.28078767,106300.0,106290.0,0.06030803]
[1762807094852,0.18778388,106300.0,106290.0,0.15442303]
[1762807095151,0.18778388,106300.0,106290.0,0.06030803]
[1762807096052,0.18778388,106300.0,106290.0,0.15442303]
[1762807096552,0.18778388,106300.0,106290.0,0.06030803]
[1762807098950,0.28079557,106300.0,106290.0,0.06030803]
[1762807099253,0.28079557,106300.0,106290.0,0.01716803]
[1762807099751,0.28079557,106300.0,106290.0,0.03922803]
[1762807099955,0.28079557,106300.0,106290.0,0.01716803]
[1762807100249,0.30346513,106300.0,106290.0,0.00319803]
[1762807100446,0.30446513,106300.0,106290.0,0.00219803]
[1762807100647,0.30446513,106300.0,106290.0,0.05949803]
[1762807103158,0.21145344,106300.0,106290.0,0.05949803]
[1762807103458,0.18778388,106300.0,106290.0,0.15361303]
[1762807103957,0.18778388,106300.0,106290.0,0.05949803]
[1762807104257,0.21045202,106300.0,106290.0,0.05949803]
[1762807104956,0.18778388,106300.0,106290.0,0.05949803]
[1762807105157,0.21045363,106300.0,106290.0,0.05949803]
[1762807106450,0.21045363,106300.0,106290.0,0.15361303]
[1762807107155,0.094115,106290.0,106280.0,0.12546665]
[1762807107357,0.094115,106290.0,106280.0,0.0581011]
[1762807107358,0.28233641,106290.0,106280.0,0.0581011]
[1762807108057,0.28233641,106290.0,106280.0,0.152225]
[1762807108251,0.28233641,106290.0,106280.0,0.12546665]
[1762807108458,0.09631303,106290.0,106280.0,0.21959055]
[1762807108649,0.28233641,106290.0,106280.0,0.12546665]
[1762807108850,0.28233641,106290.0,106280.0,0.0581011]
[1762807109457,0.28233641,106290.0,106280.0,0.0591011]
[1762807111356,0.28233641,106290.0,106280.0,0.0011411]
[1762807111657,0.0941239,106280.0,106260.0,0.1573256]
[1762807111861,0.18934242,106270.0,106260.0,0.2013156]
[1762807112251,0.18934242,106270.0,106260.0,0.13395005]
[1762807112454,0.18934242,106270.0,106260.0,0.08250433]
[1762807112763,0.09520972,106270.0,106260.0,0.1514716]
[1762807113062,0.09520972,106270.0,106260.0,0.1524716]
[1762807113453,0.18934242,106270.0,106260.0,0.05833]
[1762807113958,0.18934242,106270.0,106260.0,0.22782639]
[1762807114354,0.09520972,106270.0,106260.0,0.22782639]
[1762807114662,0.18934242,106270.0,106260.0,0.22782639]
[1762807118857,0.18934242,106270.0,106260.0,0.22782639]
[1762807119255,0.09520972,106270.0,106260.0,0.22782639]
[1762807120463,0.18934242,106270.0,106260.0,0.22782639]
[1762807121767,0.09633073,106270.0,106260.0,0.22782639]
[1762807121966,0.18934242,106270.0,106260.0,0.22782639]
[1762807122867,0.09520972,106270.0,106260.0,0.22782639]
[1762807123163,0.18934242,106270.0,106260.0,0.22782639]
[1762807124865,0.18934242,106270.0,106260.0,0.13368479]
[1762807125665,0.18934242,106270.0,106260.0,0.22782639]
[1762807129273,0.09633073,106270.0,106260.0,0.22782639]
[1762807129564,0.18934242,106270.0,106260.0,0.22782639]
[1762807129764,0.09520972,106270.0,106260.0,0.22782639]
[1762807131271,0.09633073,106270.0,106260.0,0.22782639]
[1762807131571,0.18934242,106270.0,106260.0,0.22782639]
[1762807132367,0.09520972,106270.0,106260.0,0.22782639]
[1762807134172,0.09520972,106270.0,106260.0,0.37342639]
[1762807135964,0.18934242,106270.0,106260.0,0.37342639]
[1762807140277,0.09520972,106270.0,106260.0,0.37342639]
[1762807140466,0.18934242,106270.0,106260.0,0.37342639]
[1762807141275,0.09520972,106270.0,106260.0,0.37342639]
[1762807142870,0.00219803,106270.0,106260.0,0.37342639]
[1762807143075,0.09520972,106270.0,106260.0,0.37342639]
[1762807143371,0.18934242,106270.0,106260.0,0.37342639]
[1762807145180,0.18934242,106270.0,106260.0,0.13368479]
[1762807147174,0.28235411,106270.0,106260.0,0.13368479]
[1762807147572,0.18934242,106270.0,106260.0,0.22782639]
[1762807151982,0.18934242,106270.0,106260.0,0.13368479]
[1762807152283,0.18934242,106270.0,106260.0,0.22782639]
[1762807154578,0.00219803,106270.0,106260.0,0.22782639]
[1762807154787,0.18934242,106270.0,106260.0,0.22782639]
[1762807154977,0.28244523,106270.0,106260.0,0.22782639]
[1762807156284,0.18938798,106270.0,106260.0,0.22782639]
[1762807156981,0.28244523,106270.0,106260.0,0.22782639]
[1762807157386,0.18938798,106270.0,106260.0,0.22782639]
[1762807158286,0.09525528,106270.0,106260.0,0.22782639]
[1762807158485,0.18938798,106270.0,106260.0,0.22782639]
[1762807165888,0.28244523,106270.0,106260.0,0.22782639]
[1762807168189,0.28244523,106270.0,106260.0,0.07635479]
[1762807168384,0.37550248,106270.0,106260.0,0.03588]
[1762807168576,0.1180216,106260.0,106250.0,0.0436311]
[1762807168780,0.30633413,106260.0,106250.0,0.0562711]
[1762807169882,0.30633413,106260.0,106250.0,0.0582711]
[1762807170084,0.39939138,106260.0,106250.0,0.0582711]
[1762807170389,0.39939138,106260.0,106250.0,0.0592711]
[1762807170581,0.39939138,106260.0,106250.0,0.0582711]
[1762807171184,0.39939138,106260.0,106250.0,0.0572711]
[1762807171587,0.39939138,106260.0,106250.0,0.0446311]
[1762807173283,0.39939138,106260.0,106250.0,0.0572711]
[1762807176889,0.30633413,106260.0,106250.0,0.1514216]
[1762807177485,0.09525528,106260.0,106250.0,0.1079316]
[1762807177685,0.09525528,106260.0,106250.0,0.1514216]
[1762807178190,0.21238688,106260.0,106250.0,0.1514216]
[1762807178594,0.18939688,106260.0,106250.0,0.1514216]
[1762807178794,0.21238688,106260.0,106250.0,0.1514216]
[1762807178987,0.23501688,106260.0,106250.0,0.1514216]
[1762807179593,0.32807413,106260.0,106250.0,0.1514216]
[1762807180087,0.32807413,106260.0,106250.0,0.0572711]
[1762807180286,0.32807413,106260.0,106250.0,0.1514216]
[1762807180496,0.32807413,106260.0,106250.0,0.0572711]
[1762807181493,0.32807413,106260.0,106250.0,0.1514216]
[1762807183589,0.32807413,106260.0,106250.0,0.0572711]
[1762807184900,0.32807413,106260.0,106250.0,0.0446311]
[1762807185987,0.42113138,106260.0,106250.0,0.0446311]
[1762807186192,0.42113138,106260.0,106250.0,0.0011411]
[1762807186697,0.32807413,106260.0,106250.0,0.0446311]
[1762807187099,0.42113138,106260.0,106250.0,0.0446311]
[1762807188099,0.32807413,106260.0,106250.0,0.0446311]
[1762807188288,0.32807413,106260.0,106250.0,0.1387816]
[1762807188789,0.32807413,106260.0,106250.0,0.0446311]
[1762807189489,0.32807413,106260.0,106250.0,0.1387816]
[1762807190099,0.32807413,106260.0,106250.0,0.0446311]
[1762807191707,0.32807413,106260.0,106250.0,0.0574611]
[1762807192497,0.1514204,106250.0,106240.0,0.01177951]
[1762807192696,0.02247,106250.0,106240.0,0.24463655]
[1762807193004,0.09305725,106250.0,106240.0,0.24463655]
[1762807193298,0.23182935,106260.0,106250.0,0.1515704]
[1762807193500,0.23402738,106260.0,106250.0,0.1515704]
[1762807195196,0.23402738,106260.0,106250.0,0.05742]
[1762807195406,0.32708463,106260.0,106250.0,0.05742]
[1762807195598,0.32708463,106260.0,106250.0,0.1515704]
[1762807198704,0.32708463,106260.0,106250.0,0.2971704]
[1762807200402,0.32708463,106260.0,106250.0,0.20302]
[1762807200998,0.32708463,106260.0,106250.0,0.2971704]
[1762807210206,0.32708463,106260.0,106250.0,0.20302]
[1762807210518,0.32708463,106260.0,106250.0,0.1515705]
[1762807211409,0.14096963,106260.0,106250.0,0.1515705]
[1762807211620,0.32708413,106260.0,106250.0,0.1515705]
[1762807216920,0.2340359,106260.0,106250.0,0.1515705]
[1762807220218,0.32710217,106260.0,106250.0,0.02296]
[1762807220417,0.32710217,106260.0,106250.0,0.04431]
[1762807220622,0.2340359,106260.0,106250.0,0.05819]
[1762807220820,0.2340359,106260.0,106250.0,0.1523405]
[1762807221522,0.32710217,106260.0,106250.0,0.1523405]
[1762807221717,0.32710217,106260.0,106250.0,0.05819]
[1762807223027,0.32710217,106260.0,106250.0,0.1523405]
[1762807223329,0.2340359,106260.0,106250.0,0.1523405]
[1762807224628,0.2340359,106260.0,106250.0,0.05819]
[1762807224835,0.32710217,106260.0,106250.0,0.05819]
[1762807225434,0.32710217,106260.0,106250.0,0.1523405]
[1762807225933,0.2340359,106260.0,106250.0,0.1523405]
[1762807226123,0.32710217,106260.0,106250.0,0.1523405]
[1762807226933,0.2340359,106260.0,106250.0,0.1523405]
[1762807230034,0.2340359,106260.0,106250.0,0.23661223]
[1762807230835,0.2340359,106260.0,106250.0,0.1523405]
[1762807233035,0.2340359,106260.0,106250.0,0.05819]
[1762807233930,0.2340359,106260.0,106250.0,0.1523405]
[1762807234739,0.14096963,106260.0,106250.0,0.1523405]
[1762807234942,0.2340359,106260.0,106250.0,0.1523405]
[1762807235340,0.2340359,106260.0,106250.0,0.23661223]
[1762807235729,0.1398943,106260.0,106250.0,0.23661223]
[1762807236040,0.2340359,106260.0,106250.0,0.23661223]
[1762807237139,0.2340359,106260.0,106250.0,0.1523405]
[1762807238041,0.2340359,106260.0,106250.0,0.1533405]
[1762807238237,0.2340359,106260.0,106250.0,0.05919]
[1762807238427,0.32710217,106260.0,106250.0,0.05919]
[1762807238631,0.2340359,106260.0,106250.0,0.05919]
[1762807239436,0.2340359,106260.0,106250.0,0.1533405]
[1762807239739,0.2340359,106260.0,106250.0,0.1523405]
[1762807243643,0.2340359,106260.0,106250.0,0.23661223]
[1762807245544,0.1398943,106260.0,106250.0,0.2979405]
[1762807246047,0.2340359,106260.0,106250.0,0.2979405]
[1762807251052,0.00219803,106260.0,106250.0,0.2979405]
[1762807251355,0.00219803,106260.0,106250.0,0.39100677]
[1762807251538,0.18734147,106270.0,106250.0,0.48515727]
[1762807251736,0.2331395,106270.0,106260.0,0.05822]
[1762807252152,0.2331395,106270.0,106260.0,0.1523616]
[1762807253157,0.14007323,106270.0,106260.0,0.1523616]
[1762807253357,0.2331395,106270.0,106260.0,0.1523616]
[1762807255743,0.1390054,106270.0,106260.0,0.1523616]
[1762807255944,0.2331381,106270.0,106260.0,0.1523616]
[1762807257254,0.2331381,106270.0,106260.0,0.2979616]
[1762807258648,0.1388154,106270.0,106260.0,0.2979616]
[1762807259449,0.1388154,106270.0,106260.0,0.1523616]
[1762807259954,0.0954054,106270.0,106260.0,0.1523616]
[1762807260155,0.00233913,106270.0,106260.0,0.1523616]
[1762807260455,0.02408913,106270.0,106260.0,0.1523616]
[1762807260653,0.0001411,106270.0,106260.0,0.24542787]
[1762807260844,0.094117,106290.0,106260.0,0.24542787]
[1762807261046,0.16443536,106290.0,106280.0,0.1500939]
[1762807261247,0.25750163,106290.0,106280.0,0.1500939]
[1762807261447,0.2332913,106290.0,106280.0,0.1500939]
[1762807263748,0.1391743,106290.0,106280.0,0.1500939]
[1762807265055,0.2332893,106290.0,106280.0,0.1500939]
[1762807265253,0.13711737,106300.0,106290.0,0.150085]
[1762807265456,0.00233913,106300.0,106290.0,0.150085]
[1762807266461,0.02408913,106300.0,106290.0,0.150085]
[1762807266754,0.02508913,106300.0,106290.0,0.150085]
[1762807267557,0.04724913,106300.0,106290.0,0.150085]
[1762807267860,0.2344216,106300.0,106290.0,0.150085]
[1762807268257,0.1403154,106300.0,106290.0,0.150085]
[1762807270266,0.04724913,106300.0,106290.0,0.150085]
[1762807270856,0.1403154,106300.0,106290.0,0.150085]
[1762807271752,0.2344216,106300.0,106290.0,0.05597]
[1762807271960,0.2344216,106300.0,106290.0,0.150085]
[1762807272363,0.2344216,106300.0,106290.0,0.05597]
[1762807275071,0.2344216,106300.0,106290.0,0.04272]
[1762807275671,0.2344216,106300.0,106290.0,0.05597]
[1762807276173,0.2344216,106300.0,106290.0,0.150085]
[1762807276873,0.2344216,106300.0,106290.0,0.04272]
[1762807277175,0.2344216,106300.0,106290.0,0.02123]
[1762807277675,0.138025,106290.0,106280.0,0.13307217]
[1762807277878,0.2332893,106290.0,106280.0,0.13307217]
[1762807278878,0.23324358,106290.0,106280.0,0.13307217]
[1762807279377,0.23324358,106290.0,106280.0,0.22719607]
[1762807280981,0.13912858,106290.0,106280.0,0.22719607]
[1762807281869,0.23324358,106290.0,106280.0,0.22719607]
[1762807283771,0.23324358,106290.0,106280.0,0.13307217]
[1762807284478,0.23324358,106290.0,106280.0,0.22719607]
[1762807284976,0.32626413,106290.0,106280.0,0.11982217]
[1762807285182,0.33820413,106290.0,106280.0,0.11982217]
[1762807285882,0.33820413,106290.0,106280.0,0.21394607]
[1762807286077,0.32626413,106290.0,106280.0,0.22686607]
[1762807286988,0.32626413,106290.0,106280.0,0.13274217]
[1762807287784,0.32626413,106290.0,106280.0,0.22686607]
[1762807287982,0.32626413,106290.0,106280.0,0.13274217]
[1762807288575,0.33820413,106290.0,106280.0,0.07710217]
[1762807288776,0.33820413,106290.0,106280.0,0.04505]
[1762807288978,0.33820413,106290.0,106280.0,0.1391739]
[1762807289280,0.32626413,106290.0,106280.0,0.1520939]
[1762807289479,0.1386739,106280.0,106270.0,0.0584411]
[1762807289781,0.32691303,106280.0,106270.0,0.0581111]
[1762807290986,0.32691303,106280.0,106270.0,0.0591111]
[1762807291382,0.32691303,106280.0,106270.0,0.0461911]
[1762807291585,0.41993358,106280.0,106270.0,0.0011411]
[1762807292579,0.1386916,106260.0,106250.0,0.0583]
[1762807292788,0.23278913,106260.0,106250.0,0.1524505]
[1762807293080,0.13976858,106260.0,106250.0,0.1524505]
[1762807293487,0.23278913,106260.0,106250.0,0.1524505]
[1762807293674,0.32693073,106260.0,106250.0,0.1524505]
[1762807293879,0.23278913,106260.0,106250.0,0.1524505]
[1762807294078,0.13976858,106260.0,106250.0,0.1524505]
[1762807294288,0.23391018,106260.0,106250.0,0.1524505]
[1762807294588,0.32693073,106260.0,106250.0,0.1534505]
[1762807295683,0.00219803,106260.0,106250.0,0.24647105]
[1762807295876,0.11621165,106270.0,106260.0,0.1521116]
[1762807296082,0.09535968,106270.0,106260.0,0.24513215]
[1762807296984,0.11840968,106270.0,106260.0,0.24513215]
[1762807297579,0.23404238,106270.0,106260.0,0.24513215]
[1762807298289,0.23404238,106270.0,106260.0,0.24613215]
[1762807299786,0.23404238,106270.0,106260.0,0.1531116]
[1762807307802,0.04688913,106270.0,106260.0,0.24613215]
[1762807308002,0.13990968,106270.0,106260.0,0.24613215]
[1762807309389,0.00233913,106270.0,106260.0,0.24613215]
[1762807310785,0.0001411,106270.0,106260.0,0.3391527]
[1762807312094,0.0001411,106270.0,106260.0,0.33040388]
[1762807314199,0.0001411,106270.0,106260.0,0.24613215]
[1762807314404,0.0001411,106270.0,106260.0,0.36368234]
[1762807316206,0.0001411,106270.0,106260.0,0.27066179]
[1762807316405,0.0001411,106270.0,106260.0,0.36368234]
[1762807319310,0.23417258,106270.0,106260.0,0.27066179]
[1762807319513,0.23417258,106270.0,106260.0,0.1531116]
[1762807321209,0.23417258,106270.0,106260.0,0.24613215]
[1762807321808,0.23417258,106270.0,106260.0,0.2987116]
[1762807323610,0.23417258,106270.0,106260.0,0.38286643]
[1762807323812,0.23417258,106270.0,106260.0,0.2987116]
[1762807324210,0.23417258,106270.0,106260.0,0.38286643]
[1762807326114,0.32719313,106270.0,106260.0,0.28872483]
[1762807326310,0.32719313,106270.0,106260.0,0.20457]
[1762807327215,0.32719313,106270.0,106260.0,0.2987117]
[1762807327414,0.23417258,106270.0,106260.0,0.1531117]
[1762807327612,0.14003968,106270.0,106260.0,0.1531117]
[1762807327812,0.23417248,106270.0,106260.0,0.1531117]
[1762807332411,0.04701913,106270.0,106260.0,0.1531117]
[1762807332609,0.00233913,106270.0,106260.0,0.24613225]
[1762807333114,0.09535968,106270.0,106260.0,0.24613225]
[1762807333515,0.0001411,106270.0,106260.0,0.3391528]
[1762807333811,0.0001411,106270.0,106260.0,0.33028708]
[1762807334015,0.09316165,106270.0,106260.0,0.33028708]
[1762807335414,0.0001411,106270.0,106260.0,0.33028708]
[1762807335920,0.0001411,106270.0,106260.0,0.3391528]
[1762807336622,0.0001411,106270.0,106260.0,0.39173225]
[1762807338626,0.0001411,106270.0,106260.0,0.4847528]
[1762807338924,0.0001411,106270.0,106260.0,0.39173225]
[1762807340625,0.0001411,106270.0,106260.0,0.47588708]
[1762807340825,0.0001411,106270.0,106260.0,0.38286653]
[1762807341124,0.0001411,106270.0,106260.0,0.39172993]
[1762807345323,0.0001411,106270.0,106260.0,0.47588476]
[1762807346326,0.02439913,106270.0,106260.0,0.47588476]
[1762807347327,0.00233913,106270.0,106260.0,0.47588476]
[1762807349815,0.23047333,106290.0,106280.0,0.153374]
[1762807350015,0.23267136,106290.0,106280.0,0.22785632]
[1762807350925,0.23367136,106290.0,106280.0,0.22785632]
[1762807352332,0.23267136,106290.0,106280.0,0.22785632]
[1762807353531,0.04553803,106290.0,106280.0,0.22785632]
[1762807353732,0.23045603,106310.0,106300.0,0.05925]
[1762807354027,0.13855626,106310.0,106300.0,0.1533563]
[1762807354626,0.04553803,106310.0,106300.0,0.1533563]
[1762807355226,0.23265366,106310.0,106300.0,0.1533563]
[1762807355626,0.23365366,106310.0,106300.0,0.1533563]
[1762807363234,0.13955626,106310.0,106300.0,0.1533563]
[1762807363635,0.23365366,106310.0,106300.0,0.1533563]
[1762807363936,0.13955626,106310.0,106300.0,0.1533563]
[1762807365548,0.23365366,106310.0,106300.0,0.1533563]
[1762807375147,0.14063543,106310.0,106300.0,0.1533563]
[1762807375343,0.23365366,106310.0,106300.0,0.1533563]
[1762807378847,0.13955626,106310.0,106300.0,0.1533563]
[1762807379441,0.04653803,106310.0,106300.0,0.1533563]
[1762807379649,0.13955626,106310.0,106300.0,0.1533563]
[1762807380156,0.23365366,106310.0,106300.0,0.1533563]
[1762807381140,0.23365366,106310.0,106300.0,0.05925]
[1762807381741,0.23365366,106310.0,106300.0,0.1533563]
[1762807383246,0.24629366,106310.0,106300.0,0.04634]
[1762807383751,0.24629366,106310.0,106300.0,0.05917]
[1762807383951,0.23365366,106310.0,106300.0,0.05917]
[1762807384450,0.23365366,106310.0,106300.0,0.1532763]
[1762807384648,0.24629366,106310.0,106300.0,0.1532763]
[1762807385445,0.23365366,106310.0,106300.0,0.1532763]
[1762807386156,0.23365366,106310.0,106300.0,0.05917]
[1762807386554,0.23365366,106310.0,106300.0,0.1532763]
[1762807388455,0.24629366,106310.0,106300.0,0.1532763]
[1762807388955,0.23365366,106310.0,106300.0,0.1532763]
[1762807390857,0.1366363,106300.0,106290.0,0.1518862]
[1762807391156,0.23185256,106300.0,106290.0,0.0001411]
[1762807391346,0.23185256,106300.0,106290.0,0.1518062]
[1762807391548,0.23185256,106300.0,106290.0,0.0576911]
[1762807395058,0.23185256,106300.0,106290.0,0.0448611]
[1762807396256,0.23185256,106300.0,106290.0,0.2448611]
[1762807396960,0.23185256,106300.0,106290.0,0.2576911]
[1762807397161,0.23185256,106300.0,106290.0,0.3518062]
[1762807400154,0.23185256,106300.0,106290.0,0.2576911]
[1762807402571,0.33751079,106300.0,106290.0,0.2001411]
[1762807402770,0.23185256,106300.0,106290.0,0.2591811]
[1762807402969,0.32484927,106300.0,106290.0,0.2591811]
[1762807404663,0.32484927,106300.0,106290.0,0.3532962]
[1762807405272,0.32484927,106300.0,106290.0,0.2591811]
[1762807409869,0.41785674,106300.0,106290.0,0.2001411]
[1762807410072,0.32484927,106300.0,106290.0,0.2591811]
[1762807410677,0.32484927,106300.0,106290.0,0.3532962]
[1762807413975,0.32484927,106300.0,106290.0,0.2591811]
[1762807415676,0.32484927,106300.0,106290.0,0.3532962]
[1762807416678,0.32484927,106300.0,106290.0,0.2591811]
[1762807417383,0.34837,106300.0,106290.0,0.2591811]
[1762807418873,0.34837,106300.0,106290.0,0.2230211]
[1762807419070,0.34837,106300.0,106290.0,0.2001411]
[1762807419272,0.34837,106300.0,106290.0,0.2230211]
[1762807419668,0.34837,106300.0,106290.0,0.2461211]
[1762807420970,0.32484927,106300.0,106290.0,0.2461211]
[1762807424878,0.32484927,106300.0,106290.0,0.2591811]
[1762807427185,0.34838264,106300.0,106290.0,0.2591811]
[1762807428382,0.44139011,106300.0,106290.0,0.2591811]
[1762807428681,0.44139011,106300.0,106290.0,0.2461211]
[1762807429383,0.44139011,106300.0,106290.0,0.2230211]
[1762807430478,0.44139011,106300.0,106290.0,0.2451711]
[1762807431181,0.34838264,106300.0,106290.0,0.2585311]
[1762807441883,0.34838264,106300.0,106290.0,0.3526462]
[1762807442089,0.32484927,106300.0,106290.0,0.3526462]
[1762807443887,0.2318418,106300.0,106290.0,0.3526462]
[1762807444091,0.32484927,106300.0,106290.0,0.3526462]
[1762807445091,0.32484927,106300.0,106290.0,0.2585311]
[1762807449082,0.32484927,106300.0,106290.0,0.3526462]
[1762807449886,0.32484927,106300.0,106290.0,0.2585311]
[1762807451405,0.13883433,106300.0,106290.0,0.2585311]
[1762807451596,0.32484927,106300.0,106290.0,0.2585311]
[1762807453402,0.32484927,106300.0,106290.0,0.3526462]
[1762807454101,0.32484927,106300.0,106290.0,0.2585311]
[1762807458202,0.2318418,106300.0,106290.0,0.2585311]
[1762807458508,0.32484927,106300.0,106290.0,0.2585311]
[1762807459608,0.32484927,106300.0,106290.0,0.3526462]
[1762807460005,0.04791979,106300.0,106290.0,0.3526462]
[1762807460198,0.0952055,106300.0,106290.0,0.3526462]
[1762807461508,0.09630433,106300.0,106290.0,0.3526462]
[1762807461709,0.1893118,106300.0,106290.0,0.3526462]
[1762807461904,0.09630433,106300.0,106290.0,0.3526462]
[1762807462110,0.1893118,106300.0,106290.0,0.3526462]
[1762807462310,0.09630433,106300.0,106290.0,0.3526462]
[1762807462511,0.1893118,106300.0,106290.0,0.3526462]
[1762807462808,0.0952055,106300.0,106290.0,0.3526462]
[1762807463311,0.1893118,106300.0,106290.0,0.3526462]
[1762807464306,0.0952055,106300.0,106290.0,0.3526462]
[1762807464507,0.1893118,106300.0,106290.0,0.3526462]
[1762807465011,0.18928925,106300.0,106290.0,0.3526462]
[1762807466212,0.09630433,106300.0,106290.0,0.3526462]
[1762807466420,0.18928925,106300.0,106290.0,0.3526462]
[1762807468510,0.09518295,106300.0,106290.0,0.4982462]
[1762807468714,0.00219803,106300.0,106290.0,0.4982462]
[1762807469209,0.21136925,106300.0,106290.0,0.4982462]
[1762807469513,0.18928925,106300.0,106290.0,0.4982462]
[1762807469701,0.18928925,106300.0,106290.0,0.4992462]
[1762807469901,0.00219803,106300.0,106290.0,0.4992462]
[1762807470106,0.18928925,106300.0,106290.0,0.4992462]
[1762807470314,0.21136925,106300.0,106290.0,0.4992462]
[1762807470911,0.18928925,106300.0,106290.0,0.4992462]
[1762807471520,0.09518295,106300.0,106290.0,0.4992462]
[1762807471809,0.18928925,106300.0,106290.0,0.4992462]
[1762807473217,0.09630433,106300.0,106290.0,0.4992462]
[1762807473612,0.18928925,106300.0,106290.0,0.4992462]
[1762807474215,0.21136925,106300.0,106290.0,0.4992462]
[1762807474718,0.23263925,106300.0,106290.0,0.4992462]
[1762807475021,0.21136925,106300.0,106290.0,0.4992462]
[1762807475317,0.13965433,106300.0,106290.0,0.4992462]
[1762807475517,0.23263925,106300.0,106290.0,0.4992462]
[1762807476216,0.21136925,106300.0,106290.0,0.4992462]
[1762807477213,0.11838433,106300.0,106290.0,0.4992462]
[1762807477413,0.21136925,106300.0,106290.0,0.4992462]
[1762807477712,0.23263925,106300.0,106290.0,0.4992462]
[1762807479321,0.23043542,106310.0,106300.0,0.1518363]
[1762807479517,0.21136345,106310.0,106300.0,0.1518363]
[1762807479914,0.23263345,106310.0,106300.0,0.1518363]
[1762807483416,0.09629853,106310.0,106300.0,0.1518363]
[1762807483728,0.23263345,106310.0,106300.0,0.1518363]
[1762807486323,0.13964853,106310.0,106300.0,0.1518363]
[1762807486527,0.23263345,106310.0,106300.0,0.1518363]
[1762807487323,0.25598549,106310.0,106300.0,0.1518363]
[1762807487525,0.26862549,106310.0,106300.0,0.02234]
[1762807487823,0.24527345,106310.0,106300.0,0.04472]
[1762807488832,0.23263345,106310.0,106300.0,0.05773]
[1762807497329,0.24527345,106310.0,106300.0,0.05773]
[1762807497831,0.23263345,106310.0,106300.0,0.05773]
[1762807501327,0.14202853,106310.0,106300.0,0.05773]
[1762807501532,0.23501345,106310.0,106300.0,0.05773]
[1762807503035,0.14202853,106310.0,106300.0,0.1518363]
[1762807503333,0.23501345,106310.0,106300.0,0.05773]
[1762807504326,0.23501345,106310.0,106300.0,0.1518363]
[1762807504930,0.23501345,106310.0,106300.0,0.05773]
[1762807505434,0.23501345,106310.0,106300.0,0.1518363]
[1762807506434,0.23501345,106310.0,106300.0,0.05773]
[1762807507232,0.23501345,106310.0,106300.0,0.1518363]
[1762807507426,0.23501345,106310.0,106300.0,0.05773]
[1762807517835,0.23501345,106310.0,106300.0,0.1518363]
[1762807518035,0.04669553,106310.0,106300.0,0.1518363]
[1762807518338,0.09518295,106310.0,106300.0,0.1518363]
[1762807518732,0.21255035,106310.0,106300.0,0.1518363]
[1762807518945,0.23501035,106310.0,106300.0,0.1518363]
[1762807519244,0.14091295,106310.0,106300.0,0.1518363]
[1762807520040,0.09298492,106310.0,106300.0,0.1518363]
[1762807520532,0.18708232,106310.0,106300.0,0.1508863]
[1762807520738,0.18708232,106310.0,106300.0,0.23487169]
[1762807520935,0.11494492,106310.0,106300.0,0.23487169]
[1762807521140,0.23047592,106320.0,106310.0,0.1516274]
[1762807521342,0.23267395,106320.0,106310.0,0.1516274]
[1762807522931,0.24561395,106320.0,106310.0,0.02264]
[1762807523137,0.1373574,106310.0,106300.0,0.05678]
[1762807523344,0.23254035,106310.0,106300.0,0.05678]
[1762807524139,0.1373663,106300.0,106290.0,0.2572711]
[1762807524337,0.149324,106280.0,106270.0,0.12775539]
[1762807524537,0.15152203,106280.0,106270.0,0.12775539]
[1762807524738,0.23256695,106280.0,106270.0,0.14151539]
[1762807524938,0.23256695,106280.0,106270.0,0.05753]
[1762807526447,0.23256695,106280.0,106270.0,0.1516628]
[1762807526643,0.23256695,106280.0,106270.0,0.05753]
[1762807526837,0.32566301,106280.0,106270.0,0.05753]
[1762807532847,0.4187035,106280.0,106270.0,0.05753]
[1762807533143,0.4306435,106280.0,106270.0,0.04377]
[1762807533344,0.1373928,106270.0,106260.0,0.0001411]
[1762807533551,0.23263132,106270.0,106260.0,0.0001411]
[1762807533954,0.1374105,106250.0,106240.0,0.23621815]
[1762807534151,0.32568951,106250.0,106240.0,0.14205885]
[1762807534342,0.32568951,106250.0,106240.0,0.23621825]
[1762807535846,0.32568951,106250.0,106240.0,0.23721825]
[1762807536751,0.13849852,106250.0,106240.0,0.23721825]
[1762807537343,0.23153901,106250.0,106240.0,0.23721825]
[1762807537544,0.32568951,106250.0,106240.0,0.23721825]
[1762807538754,0.23264902,106250.0,106240.0,0.23721825]
[1762807541152,0.32568951,106250.0,106240.0,0.23721825]
[1762807543258,0.32568951,106250.0,106240.0,0.14305885]
[1762807544453,0.32568951,106250.0,106240.0,0.23721825]
[1762807544661,0.28146509,106260.0,106250.0,0.1516805]
[1762807544662,0.0001411,106260.0,106250.0,0.1516805]
[1762807544862,0.00233913,106260.0,106250.0,0.24472099]
[1762807545055,0.09537962,106260.0,106250.0,0.1516805]
[1762807546056,0.09537962,106260.0,106250.0,0.24472099]
[1762807548657,0.09537962,106260.0,106250.0,0.1516805]
[1762807549361,0.23445132,106260.0,106250.0,0.1516805]
[1762807549566,0.11733962,106260.0,106250.0,0.1516805]
[1762807550458,0.23445132,106260.0,106250.0,0.2972805]